Cogmind - Beta 12 @@@ ROGUE MODE // 2023.10.11 @ 17:15:34 Player: Figgis Result: Self-destructed Performance ------------- Evolutions (2) 1000 Regions Visited (5) 1000 Robots Destroyed (35) 175 Value Destroyed (1009) 1009 Prototype IDs (0) 0 Alien Tech Used (0) 0 Bonus (162) 162 TOTAL SCORE: 3346 Bonus ------- Follower Combat Kills 168 Friendly Fire -6 Cogmind --------- Core Integrity 484/550 Matter 264/300 Energy 275/275 System Corruption 0% Temperature Cool (0) Movement Core (2600) Ox51 Location -8/Materials Parts ------- > --- POWER (1) -------- Deuterium Engine > --- PROPULSION (3) --- (None) > --- UTILITY (5) ------ Cargo Storage Unit Sensor Array Hacking Suite > --- WEAPON (2) ------- Improved Light Cannon > --- INVENTORY (30) --- Deuterium Engine Deuterium Engine Improved Heat Sink Cooling System Large Storage Unit Large Matter Pod (150) High-capacity Matter Pod (200) Improved Signal Interpreter Armor Integrity Analyzer Propulsion Shielding Medium Armor Plating Medium Armor Plating Medium Armor Plating Medium Armor Plating Medium Armor Plating Medium Armor Plating Medium Armor Plating Medium Armor Plating Hardened Light Armor Plating Hardened Light Armor Plating Reactive Plating Shield Generator Particle Gun Heavy Assault Rifle Rocket Launcher Mining Laser Peak State ------------ > --- POWER ------------ Deuterium Engine > --- PROPULSION ------- Wheel Wheel > --- UTILITY ---------- Improved Heat Sink Cargo Storage Unit Sensor Array Hacking Suite > --- WEAPON ----------- Beam Rifle Heavy Assault Rifle > --- INVENTORY -------- Deuterium Engine Deuterium Engine Improved Heat Sink Cooling System Large Storage Unit Large Matter Pod High-capacity Matter Pod Improved Signal Interpreter Armor Integrity Analyzer Propulsion Shielding Medium Armor Plating Medium Armor Plating Medium Armor Plating Medium Armor Plating Medium Armor Plating Medium Armor Plating Medium Armor Plating Medium Armor Plating Hardened Light Armor Plating Hardened Light Armor Plating EM Pulse Gun Particle Gun Improved Light Cannon Rocket Launcher Mining Laser [Rating: 23] Favorites ----------- Power Deuterium Engine Engine Deuterium Engine Propulsion Wheel Wheel Wheel Utility Cargo Storage Unit Device Improved Heat Sink Storage Cargo Storage Unit Hackware Hacking Suite Protection Hardened Light Armor Plating Weapon Particle Gun Energy Gun Particle Gun Ballistic Gun Heavy Assault Rifle Ballistic Cannon Improved Light Cannon Launcher Rocket Launcher Build | -11 -10 -10 -9 -9 -8 ------- Run | Jun Mat Min Mat Min Mat Slots Evolved 4 | . . . 2 . 2 Power . | . . . . . . Propulsion 1 | . . . . . 1 Utility 3 | . . . 2 . 1 Weapon . | . . . . . . Parts Attached 35 | 6 4 1 12 9 3 Power 3 | 1 . . 1 1 . Engine 3 | 1 . . 1 1 . Core . | . . . . . . Reactor . | . . . . . . Propulsion 8 | 2 . . 2 4 . Treads . | . . . . . . Leg . | . . . . . . Wheel 8 | 2 . . 2 4 . Hover . | . . . . . . Flight . | . . . . . . Utility 14 | 1 3 . 8 . 2 Device 4 | . 1 . 2 . 1 Storage 5 | 1 2 . 1 . 1 Processor . | . . . . . . Hackware 1 | . . . 1 . . Protection 4 | . . . 4 . . Artifact . | . . . . . . Weapon 10 | 2 1 1 1 4 1 Energy Gun 5 | 2 . 1 1 1 . Energy Cannon . | . . . . . . Ballistic Gun 3 | . 1 . . 2 . Ballistic Cannon 1 | . . . . . 1 Launcher 1 | . . . . 1 . Special Weapon . | . . . . . . Impact Weapon . | . . . . . . Slashing Weapon . | . . . . . . Piercing Weapon . | . . . . . . Special Melee Weapon . | . . . . . . Unidentified Prototypes . | . . . . . . Parts Lost 14 | . . . 3 7 4 Power 1 | . . . . 1 . Propulsion 7 | . . . 1 4 2 Utility 2 | . . . 1 . 1 Weapon 4 | . . . 1 2 1 Highest Loss Streak 3 | . . . 1 3 2 To Critical Strikes . | . . . . . . Average Slot Usage (%) 88 | . 96 100 87 87 74 Engine 11 | . 14 14 11 10 9 Wheel 22 | . 28 28 21 21 12 Device 11 | . 10 14 5 11 17 Storage 11 | . 14 14 11 11 9 Hackware 7 | . . . 5 11 9 Protection 2 | . . . 10 . . Energy Gun 12 | . 14 14 17 10 1 Ballistic Gun 8 | . 13 14 4 8 8 Launcher 1 | . . . . 2 . Naked Turns . | . . . . . . Heaviest Build 165 | 11 26 28 165 157 158 Greatest Support 26 | 26 26 26 26 26 20 Greatest Overweight (x) 52 | . . 1 9 15 52 Average Overweight (x) 4 | . . . 5 6 8 Largest Inventory Capacity 30 | 8 15 15 30 30 30 Average Capacity 25 | 5 11 15 28 30 30 Most Carried 26 | 5 9 14 19 19 26 Average Carried 15 | 3 5 11 14 16 24 Final Capacity 30 | 8 15 15 30 30 30 Final Carried 26 | 2 9 14 19 17 26 Class Distribution -------------------- 73% | Hauler-Mutant 26% | Mutant Dominant Class ---------------- Mutant | -10/Materials Mutant | -10/Mines Hauler-Mutant | -9/Materials Hauler-Mutant | -9/Mines Hauler-Mutant | -8/Materials Resources | -11 -10 -10 -9 -9 -8 ----------- Run | Jun Mat Min Mat Min Mat Matter Collected 967 | 234 71 22 128 475 37 Remotely . | . . . . . . Salvage Created 1329 | . 75 148 453 485 168 Parts 79 | . 8 9 23 29 10 Haulers Intercepted . | . . . . . . Recyclers Shooed 2 | . . . . 2 . Parts Field Recycled . | . . . . . . Retrieved Matter . | . . . . . . Parts Self-Destructed . | . . . . . . Prevented . | . . . . . . Kills | -11 -10 -10 -9 -9 -8 ------- Run | Jun Mat Min Mat Min Mat Combat Hostiles Destroyed 35 | . 1 3 12 17 2 Guns 29 | . 1 3 12 12 1 Cannons 1 | . . . . . 1 AOE 4 | . . . . 4 . Classes Destroyed 8 | . 2 . 2 4 . Worker 1 | . . . . 1 . Recycler 2 | . . . . 1 1 Watcher 3 | . 1 . 2 . . Swarmer 7 | . . . 4 3 . Grunt 15 | . 1 3 4 7 . Brawler 1 | . . . . 1 . Sentry 6 | . . . 4 . 2 Assembled 6 | . . . . 6 . Best Kill Streak 6 | . 1 2 5 6 1 Combat Bots Only 6 | . 1 2 5 6 1 Max Kills in Single Turn 2 | . 1 1 1 2 1 Gunslinging . | . . . . . . Exploded 2 | . . . . 2 . Melee . | . . . . . . Uniques/NPCs Destroyed . | . . . . . . Combat | -11 -10 -10 -9 -9 -8 -------- Run | Jun Mat Min Mat Min Mat Damage Taken 1832 | . 21 187 622 710 292 Core 352 | . 10 58 124 94 66 Absorbed by Shields . | . . . . . . Core Remaining (%) 72 | 100 . 72 . 45 . Volleys Fired 108 | . 5 12 39 43 9 Largest 2 | . 2 2 2 2 2 Hottest 130 | . 60 85 130 130 62 Shots Fired 199 | . 10 24 77 70 18 Gun 185 | . 10 24 77 65 9 Cannon 9 | . . . . . 9 Launcher 5 | . . . . 5 . Special . | . . . . . . Kinetic 84 | . 5 12 26 23 18 Thermal 110 | . 5 12 51 42 . Explosive 5 | . . . . 5 . Electromagnetic . | . . . . . . Robot Hit Streak 10 | . 5 10 6 9 8 Robot Miss Streak 3 | . 1 2 3 3 2 Penetration Max . | . . . . . . Secondary Targets 3 | . . 1 2 . . Max Gunslinging Chain 1 | . . 1 1 . . Shots Hit Robots 121 | . 7 16 45 41 12 Core Hits 67 | . 3 9 24 27 4 Critical Kills . | . . . . . . Critical Parts Destroyed 1 | . . . . 1 . Critical Strikes 4 | . . . 1 3 . Burn 3 | . . . 1 2 . Destroy 1 | . . . . 1 . Melee Attacks . | . . . . . . Impact . | . . . . . . Slashing . | . . . . . . Piercing . | . . . . . . Sneak Attacks . | . . . . . . Combat Hostiles . | . . . . . . Follow-up Attacks . | . . . . . . Damage Inflicted 2074 | . 71 199 682 919 203 Guns 1671 | . 71 199 682 613 106 Cannons 97 | . . . . . 97 Explosions 306 | . . . . 306 . Melee . | . . . . . . Ramming . | . . . . . . Kinetic 647 | . 25 65 139 215 203 Thermal 1121 | . 46 134 543 398 . Explosive 306 | . . . . 306 . Electromagnetic . | . . . . . . Impact . | . . . . . . Slashing . | . . . . . . Piercing . | . . . . . . Highest Corruption 7 | . . . . 7 . Average Corruption 6 | . . . . 6 . Corruption Purged . | . . . . . . Corruption Blocked . | . . . . . . Effects 49 | . . . . 49 . Message Errors 12 | . . . . 12 . Matter Fused 13 | . . . . 13 . Heat Flow Errors 6 | . . . . 6 . Energy Discharges 6 | . . . . 6 . Parts Fused 1 | . . . . 1 . Data Loss (minor) 8 | . . . . 8 . Data Loss (major) 1 | . . . . 1 . Misfires 1 | . . . . 1 . Alerts 1 | . . . . 1 . Overload Shots . | . . . . . . Overflow Damage . | . . . . . . Projectiles . | . . . . . . Explosions . | . . . . . . Melee . | . . . . . . Knockbacks . | . . . . . . Impact . | . . . . . . Kinetic . | . . . . . . Secondary . | . . . . . . Self-Inflicted Damage . | . . . . . . Shots . | . . . . . . Rammed . | . . . . . . Targets Rammed . | . . . . . . Kicked . | . . . . . . Crushed . | . . . . . . Highest Temperature 546 | . 26 159 546 203 . Average Temperature 105 | . 14 54 130 76 . Received Heat Transfer 591 | . 12 105 177 261 36 Effects 8 | . . . 8 . . Shutdowns 2 | . . . 2 . . Energy Bleed 2 | . . . 2 . . Damage (minor) 1 | . . . 1 . . Damage (major) 3 | . . . 3 . . Siege Activations . | . . . . . . Robots Corrupted . | . . . . . . Combat Hostiles . | . . . . . . Parts Fried . | . . . . . . Impact Corruptions . | . . . . . . Robots Melted 1 | . . . . 1 . Combat Hostiles 1 | . . . . 1 . Parts Melted 4 | . . . 3 1 . Heat Transferred 2913 | . 100 297 1369 1147 . Parts Sabotaged . | . . . . . . Parts Stolen . | . . . . . . Parts Stripped . | . . . . . . Power Chain Reactions . | . . . . . . Missiles Intercepted . | . . . . . . Alert | -11 -10 -10 -9 -9 -8 ------- Run | Jun Mat Min Mat Min Mat Peak Influence 368 | . 96 158 368 193 77 Initial 52 | . . 37 29 52 . Average 87 | . 33 81 223 43 42 Maximum Alert Level 1 | . . . 1 . . Low Security (%) 87 | 100 100 100 40 100 100 Level 1 12 | . . . 59 . . Level 2 . | . . . . . . Level 3 . | . . . . . . Level 4 . | . . . . . . Level 5 . | . . . . . . High Security . | . . . . . . Max Security . | . . . . . . Squads Dispatched 5 | . 2 . 3 . . Investigation 1 | . . . 1 . . Extermination . | . . . . . . Reinforcement 4 | . 2 . 2 . . Assault . | . . . . . . Garrison . | . . . . . . Intercept . | . . . . . . Searches Triggered . | . . . . . . Construction Impeded . | . . . . . . Haulers Reinforced . | . . . . . . Active Scanning Responses . | . . . . . . Cargo Convoy Interrupts . | . . . . . . Stealth | -11 -10 -10 -9 -9 -8 --------- Run | Jun Mat Min Mat Min Mat Distress Signals 4 | . . . 2 . 2 Communications Jammed . | . . . . . . Distress Signals . | . . . . . . Times Spotted 67 | . 3 6 24 27 7 Peak Tracking Total 13 | . 1 2 5 13 4 Tactical Retreats 2 | . . . 1 1 . Traps | -11 -10 -10 -9 -9 -8 ------- Run | Jun Mat Min Mat Min Mat Traps Triggered . | . . . . . . Indirectly . | . . . . . . Trap Hack Attempts . | . . . . . . Triggered . | . . . . . . Disarmed . | . . . . . . Reprogrammed . | . . . . . . Reused . | . . . . . . Traps Extracted . | . . . . . . Installed . | . . . . . . Triggered . | . . . . . . Machines | -11 -10 -10 -9 -9 -8 ---------- Run | Jun Mat Min Mat Min Mat Machines Disabled 1 | . . . . 1 . Max in Single Turn 1 | . . . . 1 . Machines Repaired . | . . . . . . Machines Sabotaged . | . . . . . . Overloaded Fab Kills . | . . . . . . Hacking | -11 -10 -10 -9 -9 -8 --------- Run | Jun Mat Min Mat Min Mat Machines Accessed 13 | . 5 1 4 . 3 Terminals 10 | . 3 1 4 . 2 Fabricators . | . . . . . . Repair Stations . | . . . . . . Recycling Units 3 | . 2 . . . 1 Scanalyzers . | . . . . . . Garrison Access . | . . . . . . Total Hacks 32 | . 9 4 11 . 8 Successful 14 | . 5 3 4 . 2 Failed 18 | . 4 1 7 . 6 Catastrophic 6 | . 2 . 2 . 2 Database Lockouts . | . . . . . . Manual 20 | . 5 3 7 . 5 Terminals 27 | . 5 4 11 . 7 Fabricators . | . . . . . . Repair Stations . | . . . . . . Recycling Units 5 | . 4 . . . 1 Scanalyzers . | . . . . . . Garrison Access . | . . . . . . Terminal Hacks 10 | . 2 3 4 . 1 Record 1 | . . 1 . . . Robot Analysis 3 | . 1 . 2 . . Level Access Points 1 | . . 1 . . . Branch Access Points 4 | . 1 1 1 . 1 Locate Traps 1 | . . . 1 . . Fabricator Hacks . | . . . . . . Repair Station Hacks . | . . . . . . Recycling Unit Hacks 4 | . 3 . . . 1 Report Inventory 3 | . 2 . . . 1 Retrieve Components 1 | . 1 . . . . Scanalyzer . | . . . . . . Garrison Access Hacks . | . . . . . . Unauthorized Hacks . | . . . . . . Terminals . | . . . . . . Fabricators . | . . . . . . Repair Stations . | . . . . . . Recycling Units . | . . . . . . Scanalyzers . | . . . . . . Garrison Access . | . . . . . . Data Cores Recovered . | . . . . . . Used . | . . . . . . Hacking Detections 12 | . 5 1 4 . 2 Full Trace Events 1 | . . . 1 . . Feedback Events . | . . . . . . Feedback Blocked . | . . . . . . Robot Schematics Acquired . | . . . . . . Robots Built . | . . . . . . Authchips . | . . . . . . Time . | . . . . . . Total Robot Build Rating . | . . . . . . Part Schematics Acquired . | . . . . . . Parts Built . | . . . . . . Authchips . | . . . . . . Time . | . . . . . . Total Part Build Rating . | . . . . . . Parts Repaired . | . . . . . . Time . | . . . . . . Parts Recycled . | . . . . . . Recycled Matter . | . . . . . . Retrieved Matter . | . . . . . . Retrieved Components 3 | . 3 . . . . Parts Scanalyzed . | . . . . . . Part Schematics Acquired . | . . . . . . Parts Damaged . | . . . . . . Bothacking | -11 -10 -10 -9 -9 -8 ------------ Run | Jun Mat Min Mat Min Mat Used RIF Installer . | . . . . . . Robots Hacked . | . . . . . . Non-combat . | . . . . . . Combat . | . . . . . . Robot Hacks Applied . | . . . . . . Relay Couplers Released . | . . . . . . Fabnet Peak Effective % . | . . . . . . Robots Rewired . | . . . . . . Allies Hacked . | . . . . . . Hacks Repelled . | . . . . . . Allies | -11 -10 -10 -9 -9 -8 -------- Run | Jun Mat Min Mat Min Mat Total Allies 4 | . . 3 . 1 . Largest Group 3 | . . 3 3 1 . Highest-Rated Group 40 | . . 40 40 31 . Highest-Rated Ally 31 | . . 16 16 31 . Total Orders . | . . . . . . Ally Attacks 45 | . . 15 30 . . Total Damage 520 | . . 174 346 . . Kills 9 | . . 4 5 . . Allies Corrupted . | . . . . . . Allies Melted . | . . . . . . Intel | -11 -10 -10 -9 -9 -8 ------- Run | Jun Mat Min Mat Min Mat Robot Analysis Total 3 | . 1 . 2 . . Derelict Logs Recovered 5 | . . 3 . 2 . Drone Launches . | . . . . . . Drone Recoveries . | . . . . . . Exploration | -11 -10 -10 -9 -9 -8 ------------- Run | Jun Mat Min Mat Min Mat Turns Passed 4086 | 42 166 782 849 1865 382 Spaces Moved 2304 | 36 139 669 416 932 112 Core 13 | 9 . . . . 4 Treads . | . . . . . . Legs . | . . . . . . Wheels 2291 | 27 139 669 416 932 108 Hover . | . . . . . . Flight . | . . . . . . Fastest Speed 50 | 50 90 90 105 165 185 Average Speed 153 | 80 90 102 165 184 273 Slowest Speed 2650 | 90 90 105 235 305 2650 Overloaded Moves . | . . . . . . Propulsion Burnouts . | . . . . . . Robots Hopped . | . . . . . . Cave-ins Triggered . | . . . . . . Exploration Rate (%) 49 | 3 37 98 46 100 12 Regions Visited 5 Branch Regions 2 Pre-discovered Areas 1 | . . 1 . . . Known Exits Taken 4 | . 1 1 1 1 . Unknown Exits Taken 1 | 1 . . . . . Scrap Searched 4 | . . 2 . 2 . Spaces Dug . | . . . . . . Terrain Destroyed 47 | . . . . 46 1 Melee . | . . . . . . Projectile 1 | . . . . . 1 AOE 46 | . . . . 46 . Terrain Rammed . | . . . . . . Walls Destroyed . | . . . . . . Machines Disabled . | . . . . . . Actions | -11 -10 -10 -9 -9 -8 --------- Run | Jun Mat Min Mat Min Mat Total 2655 | 49 170 743 510 1012 171 Wait 138 | . 12 57 13 24 32 Move 2299 | 35 138 668 415 931 112 Hop . | . . . . . . Pick Up 58 | 8 9 5 19 5 12 Fast Attach 1 | . . . 1 . . Attach 22 | 6 1 . 6 7 2 Detach 2 | . . . 1 . 1 Swap 12 | . 3 1 5 2 1 Drop 15 | . 2 . 11 . 2 Fire 108 | . 5 12 39 43 9 Melee . | . . . . . . Ram . | . . . . . . Kick . | . . . . . . Crush . | . . . . . . Escape Stasis . | . . . . . . Rewire . | . . . . . . Trap . | . . . . . . Miscellaneous . | . . . . . . Route ------- -11/Junkyard -10/Materials -10/Mines (discovered 3 exits: *Mat x2 / [*Exi]) -9/Materials (discovered 6 exits: *Mat x2 / *Min x2 / *Sto x2) -9/Mines (discovered 2 exits: *Mat x2) -8/Materials History --------- Turn | Location | Event 7 | -11/Junkyard | Discovered new exit (range 16) 43 | -11/Junkyard | Entered Materials 72 | -10/Materials | Identified exit to Mines 209 | -10/Materials | Entered Mines 230 | -10/Mines | Learned Materials security intel 238 | -10/Mines | Assisted by bots powering up and referring to "LRC-V3" 305 | -10/Mines | Build established: Mutant 335 | -10/Mines | Learned 2 Materials zone layouts 420 | -10/Mines | Learned location of Zion (-6) 468 | -10/Mines | Deemed a non-threat by the Exiles lab entrance 469 | -10/Mines | Discovered new exit (range 5) 621 | -10/Mines | Discovered new exit (range 6) 636 | -10/Mines | Discovered new exit (range 5) 826 | -10/Mines | YI-UF0 nonchalantly dropped a Grenade Launcher on the ground 836 | -10/Mines | Identified exit to Materials 991 | -10/Mines | Entered Materials 991 | -9/Materials | Accompanied by 3 allies 991 | -9/Materials | Evolved 2 slots: Utility x2 992 | -9/Materials | Identified exit to Materials 992 | -9/Materials | Identified exit to Mines 993 | -9/Materials | Discovered new exit (range 15) 1065 | -9/Materials | Identified exit to Storage 1372 | -9/Materials | Build established: Hauler-Mutant 1533 | -9/Materials | Discovered exit to Materials (range 8) 1840 | -9/Materials | Entered Mines 1900 | -9/Mines | Lost 3 parts (1n2w) 2104 | -9/Mines | Received a Rocket Launcher from a helpful Derelict 2147 | -9/Mines | Assembled infested the area 2151 | -9/Mines | Learned location of 1 exit from Lower Caves 2152 | -9/Mines | Assisted by a Guerilla fighting off Assembled 2185 | -9/Mines | Discovered exit to Materials (range 12) 2580 | -9/Mines | Core integrity fell below 50% 2682 | -9/Mines | Learned Materials machine intel 3011 | -9/Mines | Discovered exit to Materials (range 8) 3045 | -9/Mines | Received a Mining Laser from a helpful Derelict 3705 | -9/Mines | Entered Materials 3705 | -8/Materials | Evolved 2 slots: Propulsion x1, Utility x1 3706 | -8/Materials | Loaded intel: 53 machine locations 4087 | -8/Materials | Self-destructed Last Messages --------------- 03834_ K-01 Serf collects debris. 03876_ Acquired Shield Generator. 03882_ Connecting with Terminal... >>Access(Branch) No branch access points found. 03893_ K-01 Serf collects debris. 03919_ Connecting with Terminal... 03959_ Wheel destroyed. 03972_ Y-45 Defender destroyed. 04007_ R-06 Scavenger collects Beam Rifle. 04012_ R-06 Scavenger collects Lgt. Treads. 04015_ R-06 Scavenger collects Imp. Ion Engine. 04031_ R-06 Scavenger destroyed. 04044_ U-05 Engineer builds a Wall. 04066_ W-25 Informer sends out distress signal. 04068_ R-06 Scavenger collects Beam Rifle. 04072_ R-06 Scavenger collects Lgt. Treads. 04075_ R-06 Scavenger collects Com. Wheel. 04076_ Hvy. Assault Rifle destroyed. 04077_ Imp. Heat Sink destroyed. Map ----- +----------------------------------------------------+ | ????????????????????????"""?"""??? | | ????????????????????????"""?"""??? | | ?????????????????????????????????? | | ?????????????????????????????????? | | ?????????????????????????????????? | | ?????????????????????????????????? | | ?????????????????????????????????? | | ?????????????????????????????????? | | ?????????????????????????????????? | | ???????????????????????????T?????? | | ???????? ?????????????????????? | | ??""""?? #?????????????????????? | | ??""""?? #?????????????????????? | | ??""""?# #????????"""??????????? | | ???????# #????"""?"T"??????????? | | ???????# #????"""??????????????? | | ???????# #????"""??????????????? | | ???????# #?????????????????????? | | ###+#### #?????????????????????? | | # =## #?????????????????????? | | # ## #?????????????????????? | | # ## ##?????????"""""??????? | | # # ###### #??"""""??????? | | # """=# s # """""??????? | | # """*+% T!*! s w u ????????? | | # """ # @ % s #??"""""??????? | | # #%% ###/####??"""""??????? | | # """ ## ##?????????"""""??????? | | # """ ## #?????????????????????? | | # """ ## ##????????????????????? | | # ## ##????????????????????? | | ?####### #?????????????????????? | | ???????#a #?????????????????????? | | ######## #?????????????????????? | | # * # #?????????????????????? | | # T # #?????????????????????? | | # # r#?????????????????????? | | # = + ##########????????????? | | # # ## #????????????? | | # # ## """ #????????????? | | ######## ## "Y" #????????????? | | ??????# # #????????????? | | ??????# #! #????????????? | | ??????# +% #????????????? | | ??????# !#* #????????????? | | ??????# # == #????????????? | | ######## ## = #????????????? | | # # ## #????????????? | | #[ # ## #????????????? | | # [ + ##### ####????????????? | +----------------------------------------------------+ Best States ------------- Heat Dissipation 45 Energy Generation 14 Energy Capacity 275 Matter Stores 300 Matter Capacity 300 Sight Range 16 Robot Scan Range 14 Terrain Scan Density 10 Armor Coverage 375 Evasion (%) 50 Offensive Hacking 10 Item Schematics ----------------- None Robot Schematics ------------------ None Fabricated ------------ Nothing Alien Tech Used ----------------- None Achievements -------------- None Challenges ------------ None Game ------ Seed SignalLatentProtomatter Manual? 0 Play Time 00:24:42 Cumulative 44.4 hours Start 2023.10.11 @ 16:52:17 End 2023.10.11 @ 17:15:34 Sessions 1 Manual Loads 0 Difficulty Rogue Special Mode None Game No. 82 Rogue 79 Adventurer 3 Explorer 0 Win Type - Total 0 Types 0/0/0/0/0/0/0/0/0 Lore% 25 Gallery% 42 Achievement% 31 Wizard Run 0 Options --------- ASCII 0 Keyboard 0 Movement Mouse Keybinds 0 Fullscreen 2 Font 18/SmallcapsGlow Map View 76x50 Tactical HUD 1 Map Filters NONE Filters NONE Steam 1 RUN: 852a13f7-9961-4b31-a0fa-252b76a31adf